bitfinex/quotes_BTCUSD_20241022
["timestamp","ask_amount","ask_price","bid_price","bid_amount"]
[1729578348237,0.0090348,67799.0,67798.0,1.38966505]
[1729578348476,0.0090348,67799.0,67798.0,1.2407059]
[1729578348741,0.0090348,67799.0,67798.0,1.2437059]
[1729578351524,0.0090348,67799.0,67798.0,1.24298217]
[1729578355288,0.0090348,67799.0,67798.0,1.24498217]
[1729578356391,0.0090348,67799.0,67798.0,1.24493972]
[1729578356803,0.0090348,67799.0,67798.0,1.24293972]
[1729578356959,0.0090348,67799.0,67798.0,1.39189887]
[1729578357573,0.0090348,67799.0,67798.0,1.24293972]
[1729578357776,0.0090348,67799.0,67798.0,1.24493972]
[1729578357999,0.0090348,67799.0,67798.0,1.24293972]
[1729578359436,0.01040625,67800.0,67799.0,0.269494]
[1729578359652,0.01040625,67800.0,67799.0,1.1916723]
[1729578359877,0.01040625,67800.0,67799.0,1.22663094]
[1729578360549,0.000836,67807.0,67799.0,1.22663094]
[1729578360550,0.000836,67807.0,67806.0,0.257479]
[1729578360761,0.000836,67807.0,67806.0,1.21669133]
[1729578361001,0.000836,67807.0,67806.0,1.30843177]
[1729578361235,0.000836,67807.0,67806.0,1.40059836]
[1729578361704,0.000836,67807.0,67806.0,1.30770921]
[1729578363297,0.000836,67807.0,67806.0,1.31170921]
[1729578363750,0.001836,67807.0,67806.0,1.16775006]
[1729578367502,0.001836,67807.0,67806.0,0.81734688]
[1729578367732,0.001836,67807.0,67806.0,0.64514688]
[1729578368515,0.000836,67807.0,67806.0,0.64014688]
[1729578368742,0.000836,67807.0,67806.0,0.63614688]
[1729578368965,0.001836,67807.0,67806.0,0.64114688]
[1729578370052,0.001836,67807.0,67806.0,0.64514688]
[1729578370503,0.001836,67807.0,67806.0,0.64114688]
[1729578370729,0.000836,67807.0,67806.0,0.63614688]
[1729578370929,0.005836,67807.0,67806.0,0.63714688]
[1729578371312,0.010836,67807.0,67806.0,0.63714688]
[1729578371547,0.005836,67807.0,67806.0,0.63614688]
[1729578371791,0.010836,67807.0,67806.0,0.72931347]
[1729578372049,0.010836,67807.0,67806.0,0.63714688]
[1729578376432,0.05493308,67807.0,67806.0,0.63714688]
[1729578377106,0.05493308,67807.0,67806.0,0.72931347]
[1729578377744,0.05493308,67807.0,67806.0,0.81931347]
[1729578380920,0.05493308,67807.0,67806.0,0.72714688]
[1729578381586,0.05502084,67807.0,67806.0,0.72666506]
[1729578382736,0.05502084,67807.0,67806.0,0.63666506]
[1729578384340,0.010836,67807.0,67806.0,0.63666506]
[1729578391706,0.010836,67807.0,67806.0,0.63642406]
[1729578392129,0.010836,67807.0,67806.0,0.63618324]
[1729578393270,0.05503147,67807.0,67806.0,0.63618324]
[1729578396377,0.05503017,67807.0,67806.0,0.63618324]
[1729578396586,0.05502919,67807.0,67806.0,0.63618324]
[1729578399476,0.05502919,67807.0,67806.0,0.63783524]
[1729578401642,0.05503136,67807.0,67806.0,0.63783524]
[1729578401846,0.04503136,67807.0,67806.0,0.63663596]
[1729578402071,0.05003136,67807.0,67806.0,0.63763596]
[1729578402497,0.05003136,67807.0,67806.0,0.63663596]
[1729578402726,0.04503136,67807.0,67806.0,0.72773596]
[1729578402954,0.05303136,67807.0,67806.0,0.72773596]
[1729578404063,0.06103136,67807.0,67806.0,0.72773596]
[1729578406743,0.06103669,67807.0,67806.0,0.72773596]
[1729578408233,0.06103669,67807.0,67806.0,0.80673596]
[1729578409302,0.016836,67807.0,67806.0,0.80673596]
[1729578411086,0.06105782,67807.0,67806.0,0.80673596]
[1729578411309,0.016836,67807.0,67806.0,0.80673596]
[1729578411831,0.06106772,67807.0,67806.0,0.80625328]
[1729578412285,0.016836,67807.0,67806.0,0.80625328]
[1729578413182,0.08313703,67807.0,67806.0,0.80625328]
[1729578413407,0.016836,67807.0,67806.0,0.80625328]
[1729578413636,0.08313703,67807.0,67806.0,0.80625328]
[1729578416630,0.08322525,67807.0,67806.0,0.80625328]
[1729578419879,0.016836,67807.0,67806.0,0.80625328]
[1729578421689,0.016836,67807.0,67806.0,0.80576946]
[1729578421913,0.016836,67807.0,67806.0,0.80562849]
[1729578422147,0.06108965,67807.0,67806.0,0.80562849]
[1729578424012,0.016836,67807.0,67806.0,0.80562849]
[1729578424875,0.016836,67807.0,67806.0,0.95958764]
[1729578431780,0.016836,67807.0,67806.0,0.95934573]
[1729578432535,0.016836,67807.0,67806.0,1.06362317]
[1729578432735,0.016836,67807.0,67806.0,1.28536593]
[1729578432966,0.016836,67807.0,67806.0,1.33119421]
[1729578433173,0.016836,67807.0,67806.0,1.28736593]
[1729578433397,0.016836,67807.0,67806.0,1.33319368]
[1729578433591,0.016836,67807.0,67806.0,1.19519934]
[1729578433794,0.000836,67807.0,67806.0,1.28736593]
[1729578433994,0.001836,67807.0,67806.0,1.28836593]
[1729578434196,0.002836,67807.0,67806.0,1.28836593]
[1729578435044,0.000836,67813.0,67812.0,0.152466]
[1729578435390,0.000836,67813.0,67812.0,1.21861577]
[1729578435617,0.000836,67813.0,67812.0,1.25337908]
[1729578436243,0.000836,67813.0,67812.0,1.25537908]
[1729578436463,0.000836,67813.0,67812.0,1.25737908]
[1729578436895,0.000836,67813.0,67812.0,1.40633823]
[1729578437320,0.000836,67813.0,67812.0,0.81529313]
[1729578437546,0.000836,67813.0,67812.0,0.90745972]
[1729578439032,0.000836,67813.0,67812.0,0.90345972]
[1729578439444,0.000836,67813.0,67812.0,0.90845972]
[1729578439644,0.000836,67813.0,67812.0,0.90545972]
[1729578439859,0.000836,67813.0,67812.0,0.90345972]
[1729578440071,0.005836,67813.0,67812.0,0.90345972]
[1729578440281,0.010836,67813.0,67812.0,0.90345972]
[1729578441775,0.010836,67813.0,67812.0,0.90321781]
[1729578451293,0.010836,67813.0,67812.0,0.72835122]
[1729578451519,0.010836,67813.0,67812.0,0.48892713]
[1729578451747,0.09015856,67813.0,67812.0,0.48868422]
[1729578451968,0.09015856,67813.0,67812.0,0.63615022]
[1729578451969,0.15642113,67813.0,67812.0,0.63615022]
[1729578452195,0.09015856,67813.0,67812.0,0.63615022]
[1729578453604,0.25326899,67813.0,67812.0,0.63615022]
[1729578454501,0.01155856,67813.0,67812.0,0.63615022]
[1729578455192,0.17467791,67813.0,67812.0,0.72831681]
[1729578455419,0.01155856,67813.0,67812.0,0.72831681]
[1729578456130,0.17468149,67813.0,67812.0,0.72831681]
[1729578456602,0.17468149,67813.0,67812.0,0.72997081]
[1729578459596,0.17468373,67813.0,67812.0,0.72997081]
[1729578460601,0.01155856,67813.0,67812.0,0.72997081]
[1729578461055,0.17468412,67813.0,67812.0,0.72997081]
[1729578461974,0.16968412,67813.0,67812.0,0.7297279]
[1729578462229,0.26206932,67813.0,67812.0,0.7297279]
[1729578462463,0.26206932,67813.0,67812.0,0.49009531]
[1729578462741,0.25806932,67813.0,67812.0,0.63756131]
[1729578462952,0.26206932,67813.0,67812.0,0.63756131]
[1729578463879,0.26207078,67813.0,67812.0,0.63756131]
[1729578464320,0.26207078,67813.0,67812.0,0.7297279]
[1729578464321,0.25707078,67813.0,67812.0,0.7297279]
[1729578464554,0.00555856,67813.0,67812.0,0.7297279]
[1729578464802,0.00155856,67813.0,67812.0,0.7297279]
[1729578465032,0.00755856,67813.0,67812.0,0.7297279]
[1729578465289,0.01255856,67813.0,67812.0,0.7297279]
[1729578465721,0.00755856,67813.0,67812.0,0.7297279]
[1729578465942,0.01155856,67813.0,67812.0,0.7297279]
[1729578466375,0.00555856,67813.0,67812.0,0.7297279]
[1729578467034,0.00955856,67813.0,67812.0,0.7297279]
[1729578467916,0.07584591,67813.0,67812.0,0.7297279]
[1729578468127,0.00955856,67813.0,67812.0,0.7297279]
[1729578468781,0.00555856,67813.0,67812.0,0.7297279]
[1729578469242,0.00955856,67813.0,67812.0,0.7297279]
[1729578469675,0.00955856,67813.0,67812.0,0.8272279]
[1729578469898,0.07184591,67813.0,67812.0,0.8272279]
[1729578470127,0.07584591,67813.0,67812.0,0.8272279]
[1729578471007,0.06784591,67813.0,67812.0,0.8272279]
[1729578471223,0.07784591,67813.0,67812.0,0.8272279]
[1729578471870,0.07784591,67813.0,67812.0,0.82698499]
[1729578472327,0.01155856,67813.0,67812.0,0.82698499]
[1729578472541,0.07784591,67813.0,67812.0,0.82698499]
[1729578473009,0.01155856,67813.0,67812.0,0.82698499]
[1729578473473,0.05074834,67813.0,67812.0,0.82698499]
[1729578473700,0.00655856,67813.0,67812.0,0.82698499]
[1729578473914,0.01055856,67813.0,67812.0,0.82698499]
[1729578474236,0.01655856,67813.0,67812.0,0.82698499]
[1729578474676,0.01055856,67813.0,67812.0,0.82698499]
[1729578474886,0.01055856,67813.0,67812.0,0.90958499]
[1729578475103,0.01855856,67813.0,67812.0,0.90958499]
[1729578476670,0.06274771,67813.0,67812.0,0.90958499]
[1729578477097,0.06274771,67813.0,67812.0,1.05854414]
[1729578477098,0.017836,67813.0,67812.0,1.05854414]
[1729578477326,0.06202613,67813.0,67812.0,1.05854414]
[1729578477548,0.01855856,67813.0,67812.0,0.90958499]
[1729578478227,0.01055856,67813.0,67812.0,0.90958499]
[1729578479075,0.009836,67813.0,67812.0,0.90958499]
[1729578479295,0.01055856,67813.0,67812.0,0.90958499]
[1729578479504,0.00155856,67813.0,67812.0,0.90958499]
[1729578480591,0.00655856,67813.0,67812.0,0.90958499]
[1729578481904,0.00655856,67813.0,67812.0,0.90934208]
[1729578482533,0.05002954,67813.0,67812.0,0.90934208]
[1729578482755,0.05004193,67813.0,67812.0,0.90934208]
[1729578483847,0.05076449,67813.0,67812.0,0.90934208]
[1729578484656,0.05004193,67813.0,67812.0,0.90934208]
[1729578485095,0.05076449,67813.0,67812.0,0.90934208]
[1729578485732,0.05004193,67813.0,67812.0,0.90934208]
[1729578485940,0.05076449,67813.0,67812.0,0.90934208]
[1729578487652,0.05077277,67813.0,67812.0,0.90934208]
[1729578488073,0.00655856,67813.0,67812.0,0.90934208]
[1729578488358,0.05077265,67813.0,67812.0,0.90934208]
[1729578490077,0.00655856,67813.0,67812.0,0.90934208]
[1729578490296,0.05077713,67813.0,67812.0,0.90934208]
[1729578490725,0.06476378,67815.0,67812.0,0.76187608]
[1729578490939,0.06548634,67815.0,67814.0,0.23962859]
[1729578491143,0.00072256,67815.0,67814.0,0.69426859]
[1729578491342,0.00072256,67815.0,67814.0,0.72357331]
[1729578491853,0.00072256,67815.0,67814.0,0.7233304]
[1729578492081,0.00072256,67815.0,67814.0,0.72357331]
[1729578493166,0.00272256,67815.0,67814.0,0.72357331]
[1729578493649,0.08915098,67815.0,67814.0,0.48394472]
[1729578493872,0.17498647,67815.0,67814.0,0.57611131]
[1729578494098,0.17098647,67815.0,67814.0,0.57611131]
[1729578494543,0.17798647,67815.0,67814.0,0.57611131]
[1729578494836,0.28852199,67815.0,67814.0,0.57611131]
[1729578495530,0.28852199,67815.0,67814.0,0.72357331]
[1729578497666,0.28866325,67815.0,67814.0,0.72357331]
[1729578500846,0.17804998,67815.0,67814.0,0.72357331]
[1729578502712,0.17888891,67815.0,67814.0,0.72357331]
[1729578502926,0.12617045,67815.0,67814.0,0.72357331]
[1729578503109,0.2895098,67815.0,67814.0,0.72357331]
[1729578503332,0.17888891,67815.0,67814.0,0.72357331]
[1729578503807,0.17816635,67815.0,67814.0,0.72357331]
[1729578504013,0.17888891,67815.0,67814.0,0.72357331]
[1729578504229,0.17816635,67815.0,67814.0,0.72357331]
[1729578504447,0.17888891,67815.0,67814.0,0.72357331]
[1729578505087,0.28951276,67815.0,67814.0,0.72357331]
[1729578506460,0.28951276,67815.0,67814.0,0.48394472]
[1729578506668,0.28951276,67815.0,67814.0,0.63140672]
[1729578506989,0.17888891,67815.0,67814.0,0.48394472]
[1729578507978,0.17888891,67815.0,67814.0,0.63140672]
[1729578511247,0.17888891,67815.0,67814.0,0.48394472]
[1729578512750,0.17893109,67815.0,67814.0,0.48394472]
[1729578513611,0.311711,67815.0,67814.0,0.48394472]
[1729578514985,0.311711,67815.0,67814.0,0.48559672]
[1729578517720,0.17889608,67815.0,67814.0,0.48559672]
[1729578520601,0.17889608,67815.0,67814.0,1.48559672]
[1729578527742,0.17886183,67815.0,67814.0,1.48559672]
[1729578528431,0.17886183,67815.0,67814.0,0.48559672]
[1729578532746,0.17886807,67815.0,67814.0,0.48559672]
[1729578534443,0.17935189,67815.0,67814.0,0.48559672]
[1729578536883,0.31208058,67815.0,67814.0,0.48559672]
[1729578537540,0.17935189,67815.0,67814.0,0.48559672]
[1729578538439,0.49877104,67815.0,67814.0,0.48559672]
[1729578538663,0.58811641,67815.0,67814.0,0.456292]
[1729578538888,0.58811641,67815.0,67814.0,0.48072763]
[1729578539336,0.57411641,67815.0,67814.0,0.48072763]
[1729578539551,0.57411641,67815.0,67814.0,0.48572763]
[1729578539552,0.57611641,67815.0,67814.0,0.48572763]
[1729578539835,0.57511641,67815.0,67814.0,0.48372763]
[1729578540294,0.57511641,67815.0,67814.0,0.48572763]
[1729578540787,0.49481641,67815.0,67814.0,0.48272763]
[1729578541035,0.64415238,67815.0,67814.0,0.48272763]
[1729578541245,0.34732487,67815.0,67814.0,0.48272763]
[1729578541476,0.18399253,67815.0,67814.0,0.48272763]
[1729578541701,0.34732102,67815.0,67814.0,0.48272763]
[1729578541920,0.49478102,67815.0,67814.0,0.48272763]
[1729578543468,0.33145253,67815.0,67814.0,0.48272763]
[1729578545227,0.33145253,67815.0,67814.0,0.48072763]
[1729578545984,0.33798512,67815.0,67814.0,0.48072763]
[1729578548054,0.50127489,67815.0,67814.0,0.48072763]
[1729578550623,0.49127489,67815.0,67814.0,0.48072763]
[1729578550838,0.50127489,67815.0,67814.0,0.48072763]
[1729578551454,0.33798512,67815.0,67814.0,0.48072763]
[1729578553160,0.50122776,67815.0,67814.0,0.48072763]
[1729578556896,0.49122776,67815.0,67814.0,0.48072763]
[1729578557103,0.50122776,67815.0,67814.0,0.48072763]
[1729578559431,0.50322776,67815.0,67814.0,0.48072763]
[1729578560086,0.50122776,67815.0,67814.0,0.48072763]
[1729578561171,0.33998512,67815.0,67814.0,0.48072763]
[1729578561377,0.50420327,67815.0,67814.0,0.48072763]
[1729578561601,0.50520327,67815.0,67814.0,0.48072763]
[1729578562654,0.65441355,67815.0,67814.0,0.48072763]
[1729578563119,0.50520327,67815.0,67814.0,0.48072763]
[1729578563337,0.65241409,67815.0,67814.0,0.48072763]
[1729578563543,0.65241219,67815.0,67814.0,0.48072763]
[1729578563761,0.50320327,67815.0,67814.0,0.48072763]
[1729578563975,0.6524085,67815.0,67814.0,0.48072763]
[1729578564221,0.65240724,67815.0,67814.0,0.48072763]
[1729578564421,0.50320327,67815.0,67814.0,0.48072763]
[1729578564697,0.50320327,67815.0,67814.0,0.456292]
[1729578564887,0.50320327,67815.0,67814.0,0.4816424]
[1729578565259,0.50220327,67815.0,67814.0,0.4816424]
[1729578565472,0.50120327,67815.0,67814.0,0.4816424]
[1729578565684,0.50220327,67815.0,67814.0,0.4816424]
[1729578566125,0.50120327,67815.0,67814.0,0.4816424]
[1729578568802,0.50220327,67815.0,67814.0,0.4816424]
[1729578569019,0.50120327,67815.0,67814.0,0.4816424]
[1729578569246,0.50220327,67815.0,67814.0,0.4816424]
[1729578569673,0.50320327,67815.0,67814.0,0.4816424]
[1729578571305,0.50320327,67815.0,67814.0,0.456292]
[1729578571666,0.50320327,67815.0,67814.0,0.4816424]
[1729578576360,0.50322576,67815.0,67814.0,0.4816424]
[1729578577706,0.55201291,67815.0,67814.0,0.4816424]
[1729578577914,0.7012615,67815.0,67814.0,0.4816424]
[1729578580513,0.55201291,67815.0,67814.0,0.4816424]
[1729578586370,0.5522235,67815.0,67814.0,0.4816424]
[1729578591017,0.50343635,67815.0,67814.0,0.4816424]
[1729578591455,0.50343897,67815.0,67814.0,0.4816424]
[1729578596384,0.50344418,67815.0,67814.0,0.4816424]
[1729578604651,0.50344418,67815.0,67814.0,0.4817424]
[1729578604865,0.50344402,67815.0,67814.0,0.4817424]
[1729578606633,0.50344419,67815.0,67814.0,0.4817424]
[1729578606903,0.33998512,67815.0,67814.0,0.4817424]
[1729578607277,0.50344377,67815.0,67814.0,0.4817424]
[1729578607758,0.50344377,67815.0,67814.0,0.5814424]
[1729578608588,0.73228588,67815.0,67814.0,0.5814424]
[1729578611919,0.33998512,67815.0,67814.0,0.5814424]
[1729578612913,0.73237065,67815.0,67814.0,0.5814424]
[1729578613581,0.73237065,67815.0,67814.0,0.4817424]
[1729578614716,0.83237065,67815.0,67814.0,0.4817424]
[1729578616213,0.83037065,67815.0,67814.0,0.4817424]
[1729578616663,0.83837065,67815.0,67814.0,0.4817424]
[1729578617081,0.84237065,67815.0,67814.0,0.4817424]
[1729578617294,0.84937065,67815.0,67814.0,0.4817424]
[1729578617508,0.83737065,67815.0,67814.0,0.4817424]
[1729578617722,0.84437065,67815.0,67814.0,0.4817424]
[1729578617926,0.84437065,67815.0,67814.0,0.456392]
[1729578619257,0.83737065,67815.0,67814.0,0.456392]
[1729578619468,0.84537065,67815.0,67814.0,0.456392]
[1729578619882,0.83037065,67815.0,67814.0,0.456392]
[1729578620091,0.84537065,67815.0,67814.0,0.456392]
[1729578620603,0.83737065,67815.0,67814.0,0.456392]
[1729578620820,0.84437065,67815.0,67814.0,0.456392]
[1729578621259,0.84637065,67815.0,67814.0,0.456392]
[1729578621772,0.78947909,67815.0,67814.0,0.09147634]
[1729578622013,0.28168338,67807.0,67806.0,0.001652]
[1729578622215,0.99926406,67807.0,67806.0,0.001652]
[1729578622430,0.99926406,67807.0,67806.0,0.02784877]
[1729578622683,0.99926406,67807.0,67806.0,0.001652]
[1729578623328,1.01226406,67807.0,67806.0,0.001652]
[1729578623544,0.99926406,67807.0,67806.0,0.001652]
[1729578623993,1.01326406,67807.0,67806.0,0.001652]
[1729578624427,1.02726406,67807.0,67806.0,0.001652]
[1729578624861,0.86377009,67807.0,67806.0,0.001652]
[1729578625085,1.02691219,67807.0,67806.0,0.001652]
[1729578626310,1.01291219,67807.0,67806.0,0.001652]
[1729578626919,1.02691219,67807.0,67806.0,0.001652]
[1729578627122,1.01291219,67807.0,67806.0,0.001652]
[1729578627373,1.02691219,67807.0,67806.0,0.001652]
[1729578629365,1.03364999,67807.0,67806.0,0.001652]
[1729578629617,0.55431681,67807.0,67806.0,0.001652]
[1729578629856,0.6464834,67807.0,67806.0,0.001652]
[1729578630555,0.6324834,67807.0,67806.0,0.001652]
[1729578631001,0.86487887,67807.0,67806.0,0.001652]
[1729578631461,0.7574834,67807.0,67806.0,0.001652]
[1729578631964,0.7574834,67807.0,67798.0,0.099452]
[1729578631965,0.01120638,67799.0,67798.0,0.099452]
[1729578632177,0.65520889,67799.0,67798.0,0.099452]
[1729578632415,0.81835099,67799.0,67798.0,0.12978194]
[1729578632641,0.81835099,67799.0,67798.0,0.001652]
[1729578632642,0.68596822,67799.0,67798.0,0.001652]
[1729578633350,0.68696822,67799.0,67798.0,0.001652]
[1729578633582,0.68796822,67799.0,67798.0,0.001652]
[1729578633796,0.68596822,67799.0,67798.0,0.001652]
[1729578634014,0.68896822,67799.0,67798.0,0.001652]
[1729578634934,0.68596822,67799.0,67798.0,0.001652]
[1729578635381,0.68896822,67799.0,67798.0,0.001652]
[1729578635806,0.68596822,67799.0,67798.0,0.001652]
[1729578636248,0.69696822,67799.0,67798.0,0.001652]
[1729578636457,0.70096822,67799.0,67798.0,0.001652]
[1729578636711,0.69696822,67799.0,67798.0,0.001652]
[1729578637188,0.82928388,67799.0,67798.0,0.001652]
[1729578637419,0.70796822,67799.0,67798.0,0.001652]
[1729578637640,0.70996822,67799.0,67798.0,0.001652]
[1729578638964,0.71646366,67799.0,67798.0,0.001652]
[1729578639460,0.84987447,67799.0,67798.0,0.001652]
[1729578639709,0.71646366,67799.0,67798.0,0.001652]
[1729578640162,0.28171838,67791.0,67790.0,0.22265268]
[1729578640376,0.59381963,67791.0,67790.0,0.22265268]
[1729578640592,0.15872438,67788.0,67787.0,0.0911]
[1729578640814,0.59382563,67788.0,67787.0,0.0911]
[1729578641523,0.38919459,67791.0,67788.0,0.0972]
[1729578641524,0.0510834,67791.0,67788.0,0.0972]
[1729578641807,0.00072256,67789.0,67788.0,0.621355]
[1729578642038,0.00072256,67789.0,67788.0,0.326318]
[1729578642484,0.00072256,67789.0,67788.0,0.27096659]
[1729578642704,0.00072256,67789.0,67788.0,0.1788]
[1729578643608,0.00672256,67789.0,67788.0,0.1788]
[1729578644033,0.01172256,67789.0,67788.0,0.1788]
[1729578644222,0.00672256,67789.0,67788.0,0.1788]
[1729578644699,0.01472256,67789.0,67788.0,0.1788]
[1729578644913,0.00872256,67789.0,67788.0,0.1788]
[1729578645727,0.01572256,67789.0,67788.0,0.1788]
[1729578646163,0.00872256,67789.0,67788.0,0.1788]
[1729578646437,0.38680873,67789.0,67788.0,0.1788]
[1729578646651,0.48445567,67789.0,67788.0,0.1808]
[1729578647136,0.59566768,67789.0,67788.0,0.1818]
[1729578647348,0.59466768,67789.0,67788.0,0.1808]
[1729578647778,0.59366768,67789.0,67788.0,0.1798]
[1729578648454,0.48345567,67789.0,67788.0,0.1798]
[1729578648922,0.48347215,67789.0,67788.0,0.1798]
[1729578649346,0.48347215,67789.0,67788.0,0.1808]
[1729578649802,0.59347215,67789.0,67788.0,0.0992]
[1729578650046,0.59347215,67789.0,67788.0,0.002]
[1729578650252,0.59347215,67789.0,67788.0,0.001]
[1729578650496,0.59347215,67789.0,67788.0,0.002]
[1729578650932,0.59347215,67789.0,67788.0,0.001]
[1729578651154,0.59347215,67789.0,67783.0,0.001652]
[1729578651155,0.00120638,67784.0,67783.0,0.22430468]
[1729578651375,0.40890582,67784.0,67783.0,0.22430468]
[1729578651598,0.62050272,67784.0,67783.0,0.001652]
[1729578651809,0.53228943,67784.0,67783.0,0.001652]
[1729578652282,0.62050272,67784.0,67783.0,0.001652]
[1729578652520,0.6200189,67784.0,67783.0,0.002652]
[1729578652727,0.62050272,67784.0,67783.0,0.002652]
[1729578653793,0.62057606,67784.0,67783.0,0.002652]
[1729578654334,0.53234576,67784.0,67783.0,0.003652]
[1729578656379,0.64263364,67784.0,67783.0,0.003652]
[1729578657509,0.53234576,67784.0,67783.0,0.003652]
[1729578659246,0.53234576,67784.0,67783.0,0.47213368]
[1729578659247,0.16356951,67784.0,67783.0,0.47213368]
[1729578659475,0.06695285,67784.0,67783.0,0.331181]
[1729578659725,0.00072256,67784.0,67783.0,0.36162161]
[1729578660637,0.00072256,67784.0,67783.0,0.36062161]
[1729578660864,0.00072256,67784.0,67783.0,0.35962161]
[1729578661106,0.00072256,67784.0,67783.0,0.36062161]
[1729578661316,0.00072256,67784.0,67783.0,0.36162161]
[1729578661537,0.00072256,67784.0,67783.0,0.36062161]
[1729578661758,0.00072256,67784.0,67783.0,0.35962161]
[1729578661973,0.00872256,67784.0,67783.0,0.35962161]
[1729578662193,0.01672256,67784.0,67783.0,0.35962161]
[1729578663090,0.016,67784.0,67783.0,0.45630438]
[1729578663301,0.016,67784.0,67783.0,0.36413779]
[1729578664263,0.008,67784.0,67783.0,0.51011585]
[1729578664505,0.04415319,67790.0,67789.0,0.316516]
[1729578664720,0.04415319,67791.0,67790.0,0.32103018]
[1729578664937,0.00072256,67791.0,67790.0,0.61605818]
[1729578665147,0.00072256,67791.0,67790.0,0.64647998]
[1729578666020,0.00372256,67791.0,67790.0,0.64647998]
[1729578666457,0.003,67791.0,67790.0,0.64647998]
[1729578666661,0.00372256,67791.0,67790.0,0.64647998]
[1729578667790,0.00672256,67791.0,67790.0,0.64647998]
[1729578674661,0.006,67791.0,67790.0,0.64647998]
[1729578674873,0.00672256,67791.0,67790.0,0.64647998]
[1729578675105,0.00672256,67791.0,67790.0,0.73864657]
[1729578683113,0.006,67791.0,67790.0,0.73864657]
[1729578683554,0.00672256,67791.0,67790.0,0.64647998]
[1729578684437,0.006,67791.0,67790.0,0.64647998]
[1729578684641,0.00672256,67791.0,67790.0,0.64647998]
[1729578688393,0.006,67791.0,67790.0,0.64647998]
[1729578688846,0.00672256,67791.0,67790.0,0.64647998]
[1729578689068,0.006,67791.0,67790.0,0.64647998]
[1729578689292,0.00672256,67791.0,67790.0,0.64647998]
[1729578690214,0.00072256,67791.0,67790.0,0.64647998]
[1729578690457,0.00172256,67791.0,67790.0,0.64647998]
[1729578690703,0.00272256,67791.0,67790.0,0.64647998]
[1729578690943,0.002,67791.0,67790.0,0.90802405]
[1729578691180,0.00072256,67802.0,67797.0,0.32291518]
[1729578691415,0.00072256,67802.0,67790.0,0.29196587]
[1729578691416,0.00072256,67802.0,67801.0,0.24430618]
[1729578691646,0.00072256,67802.0,67801.0,0.33195659]
[1729578691870,0.00072256,67802.0,67801.0,0.36423592]
[1729578693385,0.00072256,67802.0,67801.0,0.12457933]
[1729578693622,0.00072256,67802.0,67801.0,0.21774592]
[1729578693841,0.00072256,67802.0,67801.0,0.36523592]
[1729578694076,0.00072256,67802.0,67801.0,0.36423592]
[1729578694325,0.00772256,67802.0,67801.0,0.36423592]
[1729578694554,0.00072256,67802.0,67801.0,0.36423592]
[1729578694764,0.01472256,67802.0,67801.0,0.36523592]
[1729578696142,0.00872256,67802.0,67801.0,0.36423592]
[1729578696367,0.00872256,67802.0,67801.0,0.12457933]
[1729578696599,0.01572256,67802.0,67801.0,0.03327933]
[1729578702476,0.01654956,67802.0,67801.0,0.03327933]
[1729578703128,0.01654956,67802.0,67801.0,0.13317933]
[1729578703396,0.34648053,67802.0,67801.0,0.03327933]
[1729578703633,0.20754724,67802.0,67801.0,0.03327933]
[1729578703864,0.20754724,67802.0,67801.0,0.23889]
[1729578703865,0.01654956,67802.0,67801.0,0.23889]
[1729578704084,0.06070584,67802.0,67801.0,0.23889]
[1729578704306,0.06070584,67802.0,67801.0,0.27110843]
[1729578704528,0.06072086,67802.0,67801.0,0.27110843]
[1729578705421,0.08280652,67802.0,67801.0,0.27110843]
[1729578707670,0.01654956,67802.0,67801.0,0.27110843]
[1729578708551,0.26805993,67802.0,67801.0,0.27110843]
[1729578708779,0.26805993,67802.0,67801.0,0.12361843]
[1729578709444,0.26815204,67802.0,67801.0,0.12361843]
[1729578709684,0.17973717,67802.0,67801.0,0.12361843]
[1729578709917,0.32722517,67802.0,67801.0,0.12361843]
[1729578710139,0.17973717,67802.0,67801.0,0.0914]
[1729578710356,0.29025576,67802.0,67801.0,0.12364229]
[1729578710573,0.28225576,67802.0,67801.0,0.12364229]
[1729578711035,0.28325576,67802.0,67801.0,0.12364229]
[1729578712091,0.27625576,67802.0,67801.0,0.12264229]
[1729578712295,0.27725576,67802.0,67801.0,0.12764229]
[1729578713954,0.27730106,67802.0,67801.0,0.12764229]
[1729578719228,0.27732579,67802.0,67801.0,0.27513229]
[1729578719464,0.25521537,67802.0,67801.0,0.27513229]
[1729578720819,0.25521537,67802.0,67801.0,0.12764229]
[1729578721051,0.25521537,67802.0,67801.0,0.27513229]
[1729578721284,0.25521537,67802.0,67801.0,0.12764229]
[1729578721518,0.31426692,67802.0,67801.0,0.03724229]
[1729578721746,0.31426692,67802.0,67801.0,0.005]
[1729578722658,0.31428696,67802.0,67801.0,0.005]
[1729578722877,0.16679896,67802.0,67801.0,0.005]
[1729578723093,0.16679896,67802.0,67801.0,0.03755831]
[1729578723810,0.16579896,67802.0,67801.0,0.03755831]
[1729578724039,0.16579896,67802.0,67801.0,0.03255831]
[1729578724480,0.16679896,67802.0,67801.0,0.03755831]
[1729578724693,0.31428696,67802.0,67801.0,0.03755831]
[1729578724973,0.31228696,67802.0,67795.0,0.0911]
[1729578725237,0.00072256,67796.0,67795.0,0.238603]
[1729578726363,0.16397196,67796.0,67795.0,0.238603]
[1729578727020,0.17297196,67796.0,67795.0,0.238603]
[1729578727703,0.18097196,67796.0,67795.0,0.238603]
[1729578728150,0.18097196,67796.0,67795.0,0.0911]
[1729578728381,0.26942542,67796.0,67795.0,0.0911]
[1729578729120,0.26942542,67796.0,67795.0,0.092754]
[1729578729342,0.26942542,67796.0,67795.0,0.240257]
[1729578729787,0.26942542,67796.0,67795.0,0.092754]
[1729578730000,0.26942542,67796.0,67795.0,0.240257]
[1729578732491,0.26951163,67796.0,67795.0,0.240257]
[1729578733186,0.26951163,67796.0,67795.0,0.092754]
[1729578733396,0.26951163,67796.0,67795.0,0.240257]
[1729578734481,0.18103119,67796.0,67795.0,0.240257]
[1729578735335,0.26952075,67796.0,67795.0,0.240257]
[1729578735569,0.26952075,67796.0,67795.0,0.001654]
[1729578736237,0.18103119,67796.0,67795.0,0.001654]
[1729578736466,0.01772256,67796.0,67795.0,0.001654]
[1729578736906,0.18105281,67796.0,67795.0,0.001654]
[1729578739413,0.18108603,67796.0,67795.0,0.001654]
[1729578739646,0.18108603,67796.0,67795.0,0.03427592]
[1729578739869,0.18108603,67796.0,67795.0,0.001654]
[1729578740106,0.18108603,67796.0,67795.0,0.03427592]
[1729578740357,0.18108603,67796.0,67795.0,0.001654]
[1729578740836,0.18108603,67796.0,67795.0,0.03427592]
[1729578741056,0.18109274,67796.0,67795.0,0.001654]
[1729578741268,0.18109274,67796.0,67795.0,0.03427592]
[1729578741481,0.18109274,67796.0,67795.0,0.001654]
[1729578741696,0.18109274,67796.0,67795.0,0.03427592]
[1729578741912,0.18109274,67796.0,67795.0,0.001654]
[1729578742137,0.18109274,67796.0,67795.0,0.03427592]